Workbook

Sheet Sheet1
A1: 仁怀市公安局2023年公开招聘合同制警务辅助人员体能测试成绩、总成绩汇总表
A2: 序号 | B2: 准考证号 | C2: 报考岗位 | D2: 岗位代码 | E2: 是否符合加分条件 | F2: 加分分值 | G2: 笔试成绩 | H2: 笔试成绩折算 | I2: 面试成绩 | J2: 面试成绩折算 | K2: 纵跳摸高（米） | L2: 单项成绩 | M2: 10米×4往返跑 （秒） | N2: 单项成绩 | O2: 1000米/800米跑（分′秒） | P2: 单项成绩 | Q2: 体能测试成绩 | R2: 体能测试成绩折算 | S2: 总成绩 | T2: 是否进入下一环节 | U2: 备注
A3: 1 | B3: 20231201023 | C3: 宣传岗 | D3: 01 | E3: - | F3: 0 | G3: 74.00 | H3: =G3*40% -> 29.60 | I3: 81.90 | J3: =I3*40% -> 32.76 | K3: 缺考 | L3: 缺考 | M3: 缺考 | N3: 缺考 | O3: 缺考 | P3: 缺考 | Q3: 缺考 | R3: 缺考 | S3: 缺考
A4: 2 | B4: 20231201014 | C4: 宣传岗 | D4: 01 | E4: - | F4: 0 | G4: 81.50 | H4: 32.60 | I4: 74.88 | J4: 29.95 | K4: 0.47 | L4: 65.00 | M4: 12.71 | N4: 70.00 | O4: 3′36 | P4: 90.00 | Q4: =(L4+N4+P4)/3 -> 75.00 | R4: =Q4*0.2 -> 15.00 | S4: =F4+H4+J4+R4 -> 77.55 | T4: 是
A5: 3 | B5: 20231201017 | C5: 宣传岗 | D5: 01 | E5: - | F5: 0 | G5: 85.50 | H5: 34.20 | I5: 83.66 | J5: 33.46 | K5: 0.41 | L5: 45.00 | M5: 12.94 | N5: 50.00 | O5: 4′23 | P5: 30.00 | Q5: 41.67 | R5: 8.33 | S5: 76.00 | T5: 是
A6: 4 | B6: 20231201008 | C6: 宣传岗 | D6: 01 | E6: - | F6: 0 | G6: 77.40 | H6: 30.96 | I6: 81.96 | J6: 32.78 | K6: 0.53 | L6: 75.00 | M6: 13.02 | N6: 50.00 | O6: 3′57 | P6: 55.00 | Q6: 60.00 | R6: 12.00 | S6: 75.74 | T6: 是
A7: 5 | B7: 20231201019 | C7: 宣传岗 | D7: 01 | E7: - | F7: 0 | G7: 78.10 | H7: 31.24 | I7: 82.20 | J7: 32.88 | K7: 0.32 | L7: 30.00 | M7: 12.99 | N7: 65.00 | O7: 4′06 | P7: 60.00 | Q7: 51.67 | R7: 10.33 | S7: 74.45
A8: 6 | B8: 20231201009 | C8: 宣传岗 | D8: 01 | E8: - | F8: 0 | G8: 81.50 | H8: 32.60 | I8: 76.96 | J8: 30.78 | K8: 0.41 | L8: 45.00 | M8: 12.65 | N8: 55.00 | O8: 3′54 | P8: 60.00 | Q8: 53.33 | R8: 10.67 | S8: 74.05
A9: 7 | B9: 20231201002 | C9: 宣传岗 | D9: 01 | E9: - | F9: 0 | G9: 76.40 | H9: 30.56 | I9: 80.12 | J9: 32.05 | K9: 0.39 | L9: 40.00 | M9: 12.81 | N9: 55.00 | O9: 3′58 | P9: 55.00 | Q9: 50.00 | R9: 10.00 | S9: 72.61
A10: 8 | B10: 20231202003 | C10: 宣传岗 | D10: 01 | E10: - | F10: 0 | G10: 78.20 | H10: 31.28 | I10: 72.04 | J10: 28.82 | K10: 0.43 | L10: 50.00 | M10: 12.73 | N10: 55.00 | O10: 3′43 | P10: 70.00 | Q10: 58.33 | R10: 11.67 | S10: 71.76
A11: 9 | B11: 20231201027 | C11: 宣传岗 | D11: 01 | E11: - | F11: 0 | G11: 76.30 | H11: 30.52 | I11: 72.92 | J11: 29.17 | K11: 0.41 | L11: 45.00 | M11: 13.14 | N11: 50.00 | O11: 4′19 | P11: 35.00 | Q11: 43.33 | R11: 8.67 | S11: 68.35
A12: 10 | B12: 20231202028 | C12: 综合岗 | D12: 02 | E12: - | F12: 0 | G12: 75.90 | H12: 30.36 | I12: 77.94 | J12: 31.18 | K12: 缺考 | L12: 缺考 | M12: 缺考 | N12: 缺考 | O12: 缺考 | P12: 缺考 | Q12: 缺考 | R12: 缺考 | S12: 缺考
A13: 11 | B13: 20231204007 | C13: 综合岗 | D13: 02 | E13: - | F13: 0 | G13: 73.80 | H13: 29.52 | I13: 78.36 | J13: 31.34 | K13: 缺考 | L13: 缺考 | M13: 缺考 | N13: 缺考 | O13: 缺考 | P13: 缺考 | Q13: 缺考 | R13: 缺考 | S13: 缺考
A14: 12 | B14: 20231203003 | C14: 综合岗 | D14: 02 | E14: - | F14: 0 | G14: 71.30 | H14: 28.52 | I14: 80.66 | J14: 32.26 | K14: 缺考 | L14: 缺考 | M14: 缺考 | N14: 缺考 | O14: 缺考 | P14: 缺考 | Q14: 缺考 | R14: 缺考 | S14: 缺考
A15: 13 | B15: 20231203006 | C15: 综合岗 | D15: 02 | E15: - | F15: 0 | G15: 74.10 | H15: 29.64 | I15: 77.84 | J15: 31.14 | K15: 缺考 | L15: 缺考 | M15: 缺考 | N15: 缺考 | O15: 缺考 | P15: 缺考 | Q15: 缺考 | R15: 缺考 | S15: 缺考
A16: 14 | B16: 20231203015 | C16: 综合岗 | D16: 02 | E16: - | F16: 0 | G16: 72.50 | H16: 29.00 | I16: 79.36 | J16: 31.74 | K16: 缺考 | L16: 缺考 | M16: 缺考 | N16: 缺考 | O16: 缺考 | P16: 缺考 | Q16: 缺考 | R16: 缺考 | S16: 缺考
A17: 15 | B17: 20231202012 | C17: 综合岗 | D17: 02 | E17: - | F17: 0 | G17: 73.30 | H17: 29.32 | I17: 77.84 | J17: 31.14 | K17: 缺考 | L17: 缺考 | M17: 缺考 | N17: 缺考 | O17: 缺考 | P17: 缺考 | Q17: 缺考 | R17: 缺考 | S17: 缺考
A18: 16 | B18: 20231203005 | C18: 综合岗 | D18: 02 | E18: - | F18: 0 | G18: 80.40 | H18: 32.16 | I18: 76.66 | J18: 30.66 | K18: 0.35 | L18: 30.00 | M18: 13.20 | N18: 50.00 | O18: 4′46 | P18: 0.00 | Q18: 不合格 | R18: 不合格 | S18: 不合格
A19: 17 | B19: 20231203027 | C19: 综合岗 | D19: 02 | E19: - | F19: 0 | G19: 73.30 | H19: 29.32 | I19: 82.68 | J19: 33.07 | K19: 0.46 | L19: 65.00 | M19: 13.66 | N19: 55.00 | O19: 4′52 | P19: 0.00 | Q19: 不合格 | R19: 不合格 | S19: 不合格
A20: 18 | B20: 20231202019 | C20: 综合岗 | D20: 02 | E20: - | F20: 0 | G20: 72.20 | H20: 28.88 | I20: 80.16 | J20: 32.06 | K20: 0.53 | L20: 50.00 | M20: 11.86 | N20: 55.00 | O20: 5′11 | P20: 0.00 | Q20: 不合格 | R20: 不合格 | S20: 不合格
A21: 19 | B21: 20231203012 | C21: 综合岗 | D21: 02 | E21: - | F21: 0 | G21: 83.30 | H21: 33.32 | I21: 79.92 | J21: 31.97 | K21: 0.62 | L21: 75.00 | M21: 11.22 | N21: 65.00 | O21: 3′54 | P21: 60.00 | Q21: =(L21+N21+P21)/3 -> 66.67 | R21: =Q21*0.2 -> 13.33 | S21: =F21+H21+J21+R21 -> 78.62 | T21: 是
A22: 20 | B22: 20231203017 | C22: 综合岗 | D22: 02 | E22: - | F22: 0 | G22: 79.90 | H22: 31.96 | I22: 81.58 | J22: 32.63 | K22: 0.49 | L22: 70.00 | M22: 12.45 | N22: 75.00 | O22: 4′05 | P22: 65.00 | Q22: 70.00 | R22: 14.00 | S22: 78.59 | T22: 是
A23: 21 | B23: 20231203016 | C23: 综合岗 | D23: 02 | E23: - | F23: 0 | G23: 70.60 | H23: 28.24 | I23: 76.68 | J23: 30.67 | K23: 0.76 | L23: 100.00 | M23: 10.04 | N23: 100.00 | O23: 3′38 | P23: 95.00 | Q23: 98.33 | R23: 19.67 | S23: 78.58 | T23: 是
A24: 22 | B24: 20231203025 | C24: 综合岗 | D24: 02 | E24: - | F24: 0 | G24: 71.80 | H24: 28.72 | I24: 80.14 | J24: 32.06 | K24: 0.45 | L24: 60.00 | M24: 11.48 | N24: 90.00 | O24: 3′38 | P24: 90.00 | Q24: 80.00 | R24: 16.00 | S24: 76.78 | T24: 是
A25: 23 | B25: 20231203018 | C25: 综合岗 | D25: 02 | E25: - | F25: 0 | G25: 78.50 | H25: 31.40 | I25: 78.80 | J25: 31.52 | K25: 0.62 | L25: 80.00 | M25: 11.21 | N25: 80.00 | O25: 4′30 | P25: 45.00 | Q25: 68.33 | R25: 13.67 | S25: 76.59 | T25: 是
A26: 24 | B26: 20231203004 | C26: 综合岗 | D26: 02 | E26: - | F26: 0 | G26: 79.20 | H26: 31.68 | I26: 79.66 | J26: 31.86 | K26: 0.44 | L26: 55.00 | M26: 12.03 | N26: 65.00 | O26: 3′39 | P26: 75.00 | Q26: 65.00 | R26: 13.00 | S26: 76.54 | T26: 是
A27: 25 | B27: 20231203010 | C27: 综合岗 | D27: 02 | E27: 是 | F27: 2 | G27: 70.30 | H27: 28.12 | I27: 77.20 | J27: 30.88 | K27: 0.53 | L27: 75.00 | M27: 11.72 | N27: 70.00 | O27: 3′38 | P27: 75.00 | Q27: 73.33 | R27: 14.67 | S27: 75.67 | T27: 是
A28: 26 | B28: 20231202027 | C28: 综合岗 | D28: 02 | E28: 是 | F28: 2 | G28: 70.50 | H28: 28.20 | I28: 79.44 | J28: 31.78 | K28: 0.58 | L28: 65.00 | M28: 11.45 | N28: 60.00 | O28: 3′36 | P28: 75.00 | Q28: 66.67 | R28: 13.33 | S28: 75.31 | T28: 是
A29: 27 | B29: 20231204004 | C29: 综合岗 | D29: 02 | E29: - | F29: 0 | G29: 76.20 | H29: 30.48 | I29: 80.24 | J29: 32.10 | K29: 0.56 | L29: 60.00 | M29: 10.91 | N29: 70.00 | O29: 3′51 | P29: 60.00 | Q29: 63.33 | R29: 12.67 | S29: 75.24 | T29: 是
A30: 28 | B30: 20231204008 | C30: 综合岗 | D30: 02 | E30: - | F30: 0 | G30: 75.70 | H30: 30.28 | I30: 79.96 | J30: 31.98 | K30: 0.53 | L30: 55.00 | M30: 11.29 | N30: 80.00 | O30: 4′22 | P30: 50.00 | Q30: 61.67 | R30: 12.33 | S30: 74.60 | T30: 是
A31: 29 | B31: 20231203011 | C31: 综合岗 | D31: 02 | E31: - | F31: 0 | G31: 71.30 | H31: 28.52 | I31: 79.30 | J31: 31.72 | K31: 0.44 | L31: 55.00 | M31: 11.82 | N31: 70.00 | O31: 3′31 | P31: 85.00 | Q31: 70.00 | R31: 14.00 | S31: 74.24
A32: 30 | B32: 20231204010 | C32: 综合岗 | D32: 02 | E32: - | F32: 0 | G32: 76.00 | H32: 30.40 | I32: 78.62 | J32: 31.45 | K32: 0.37 | L32: 40.00 | M32: 13.14 | N32: 65.00 | O32: 3′53 | P32: 75.00 | Q32: 60.00 | R32: 12.00 | S32: 73.85
A33: 31 | B33: 20231202010 | C33: 综合岗 | D33: 02 | E33: - | F33: 0 | G33: 82.30 | H33: 32.92 | I33: 80.56 | J33: 32.22 | K33: 0.41 | L33: 45.00 | M33: 12.78 | N33: 55.00 | O33: 4′23 | P33: 30.00 | Q33: 43.33 | R33: 8.67 | S33: 73.81
A34: 32 | B34: 20231203023 | C34: 综合岗 | D34: 02 | E34: - | F34: 0 | G34: 76.30 | H34: 30.52 | I34: 76.78 | J34: 30.71 | K34: 0.46 | L34: 60.00 | M34: 12.79 | N34: 55.00 | O34: 3′54 | P34: 60.00 | Q34: 58.33 | R34: 11.67 | S34: 72.90
A35: 33 | B35: 20231204014 | C35: 综合岗 | D35: 02 | E35: - | F35: 0 | G35: 78.00 | H35: 31.20 | I35: 75.72 | J35: 30.29 | K35: 0.60 | L35: 70.00 | M35: 11.80 | N35: 55.00 | O35: 4′10 | P35: 45.00 | Q35: 56.67 | R35: 11.33 | S35: 72.82
A36: 34 | B36: 20231203019 | C36: 综合岗 | D36: 02 | E36: - | F36: 0 | G36: 74.80 | H36: 29.92 | I36: 74.78 | J36: 29.91 | K36: 0.47 | L36: 60.00 | M36: 12.12 | N36: 65.00 | O36: 3′47 | P36: 65.00 | Q36: 63.33 | R36: 12.67 | S36: 72.50
A37: 35 | B37: 20231204002 | C37: 综合岗 | D37: 02 | E37: - | F37: 0 | G37: 76.00 | H37: 30.40 | I37: 81.98 | J37: 32.79 | K37: 0.35 | L37: 30.00 | M37: 12.24 | N37: 65.00 | O37: 4′12 | P37: 40.00 | Q37: 45.00 | R37: 9.00 | S37: 72.19
A38: 36 | B38: 20231202024 | C38: 综合岗 | D38: 02 | E38: - | F38: 0 | G38: 73.50 | H38: 29.40 | I38: 81.48 | J38: 32.59 | K38: 0.38 | L38: 45.00 | M38: 12.73 | N38: 70.00 | O38: 4′34 | P38: 35.00 | Q38: 50.00 | R38: 10.00 | S38: 71.99
A39: 37 | B39: 20231202022 | C39: 综合岗 | D39: 02 | E39: - | F39: 0 | G39: 71.10 | H39: 28.44 | I39: 77.18 | J39: 30.87 | K39: 0.48 | L39: 65.00 | M39: 12.49 | N39: 60.00 | O39: 4′04 | P39: 50.00 | Q39: 58.33 | R39: 11.67 | S39: 70.98
A40: 38 | B40: 20231203014 | C40: 综合岗 | D40: 02 | E40: - | F40: 0 | G40: 71.60 | H40: 28.64 | I40: 77.06 | J40: 30.82 | K40: 0.56 | L40: 60.00 | M40: 11.65 | N40: 55.00 | O40: 4′06 | P40: 45.00 | Q40: 53.33 | R40: 10.67 | S40: 70.13
A41: 39 | B41: 20231208009 | C41: 文秘岗 | D41: 03 | E41: - | F41: 0 | G41: 80.70 | H41: 32.28 | I41: 80.48 | J41: 32.19 | K41: 缺考 | L41: 缺考 | M41: 缺考 | N41: 缺考 | O41: 缺考 | P41: 缺考 | Q41: 缺考 | R41: 缺考 | S41: 缺考
A42: 40 | B42: 20231205015 | C42: 文秘岗 | D42: 03 | E42: - | F42: 0 | G42: 79.30 | H42: 31.72 | I42: 80.80 | J42: 32.32 | K42: 缺考 | L42: 缺考 | M42: 缺考 | N42: 缺考 | O42: 缺考 | P42: 缺考 | Q42: 缺考 | R42: 缺考 | S42: 缺考
A43: 41 | B43: 20231211020 | C43: 文秘岗 | D43: 03 | E43: - | F43: 0 | G43: 79.20 | H43: 31.68 | I43: 79.46 | J43: 31.78 | K43: 缺考 | L43: 缺考 | M43: 缺考 | N43: 缺考 | O43: 缺考 | P43: 缺考 | Q43: 缺考 | R43: 缺考 | S43: 缺考
A44: 42 | B44: 20231216020 | C44: 文秘岗 | D44: 03 | E44: - | F44: 0 | G44: 78.80 | H44: 31.52 | I44: 78.40 | J44: 31.36 | K44: 缺考 | L44: 缺考 | M44: 缺考 | N44: 缺考 | O44: 缺考 | P44: 缺考 | Q44: 缺考 | R44: 缺考 | S44: 缺考
A45: 43 | B45: 20231222023 | C45: 文秘岗 | D45: 03 | E45: - | F45: 0 | G45: 84.50 | H45: 33.80 | I45: 84.68 | J45: 33.87 | K45: 0.55 | L45: 55.00 | M45: 11.48 | N45: 60.00 | O45: 4′43 | P45: 0.00 | Q45: 不合格 | R45: 不合格 | S45: 不合格
A46: 44 | B46: 20231206022 | C46: 文秘岗 | D46: 03 | E46: - | F46: 0 | G46: 82.80 | H46: 33.12 | I46: 83.16 | J46: 33.26 | K46: 0.43 | L46: 50.00 | M46: 12.86 | N46: 55.00 | O46: 4′51 | P46: 0.00 | Q46: 不合格 | R46: 不合格 | S46: 不合格
A47: 45 | B47: 20231210021 | C47: 文秘岗 | D47: 03 | E47: - | F47: 0 | G47: 81.80 | H47: 32.72 | I47: 83.72 | J47: 33.49 | K47: 0.39 | L47: 45.00 | M47: 13.10 | N47: 65.00 | O47: 4′41 | P47: 0.00 | Q47: 不合格 | R47: 不合格 | S47: 不合格
A48: 46 | B48: 20231217013 | C48: 文秘岗 | D48: 03 | E48: - | F48: 0 | G48: 80.50 | H48: 32.20 | I48: 84.14 | J48: 33.66 | K48: 0.39 | L48: 40.00 | M48: 14.05 | N48: 35.00 | O48: 4′35 | P48: 0.00 | Q48: 不合格 | R48: 不合格 | S48: 不合格
A49: 47 | B49: 20231221020 | C49: 文秘岗 | D49: 03 | E49: - | F49: 0 | G49: 82.10 | H49: 32.84 | I49: 80.84 | J49: 32.34 | K49: 0.44 | L49: 55.00 | M49: 12.96 | N49: 50.00 | O49: 4′42 | P49: 0.00 | Q49: 不合格 | R49: 不合格 | S49: 不合格
A50: 48 | B50: 20231218021 | C50: 文秘岗 | D50: 03 | E50: - | F50: 0 | G50: 87.70 | H50: 35.08 | I50: 81.30 | J50: 32.52 | K50: 0.71 | L50: 100.00 | M50: 10.79 | N50: 85.00 | O50: 4′05 | P50: 70.00 | Q50: =(L50+N50+P50)/3 -> 85.00 | R50: =Q50*0.2 -> 17.00 | S50: =F50+H50+J50+R50 -> 84.60 | T50: 是
A51: 49 | B51: 20231216030 | C51: 文秘岗 | D51: 03 | E51: 是 | F51: 2 | G51: 78.70 | H51: 31.48 | I51: 82.06 | J51: 32.82 | K51: 0.62 | L51: 75.00 | M51: 10.19 | N51: 80.00 | O51: 3′50 | P51: 65.00 | Q51: 73.33 | R51: 14.67 | S51: 80.97 | T51: 是
A52: 50 | B52: 20231206025 | C52: 文秘岗 | D52: 03 | E52: - | F52: 0 | G52: 81.00 | H52: 32.40 | I52: 82.18 | J52: 32.87 | K52: 0.51 | L52: 75.00 | M52: 12.51 | N52: 75.00 | O52: 3′46 | P52: 80.00 | Q52: 76.67 | R52: 15.33 | S52: 80.61 | T52: 是
A53: 51 | B53: 20231215019 | C53: 文秘岗 | D53: 03 | E53: - | F53: 0 | G53: 82.50 | H53: 33.00 | I53: 81.70 | J53: 32.68 | K53: 0.44 | L53: 55.00 | M53: 11.57 | N53: 75.00 | O53: 3′34 | P53: 80.00 | Q53: 70.00 | R53: 14.00 | S53: 79.68 | T53: 是
A54: 52 | B54: 20231219002 | C54: 文秘岗 | D54: 03 | E54: - | F54: 0 | G54: 84.30 | H54: 33.72 | I54: 83.10 | J54: 33.24 | K54: 0.47 | L54: 60.00 | M54: 12.94 | N54: 50.00 | O54: 3′40 | P54: 75.00 | Q54: 61.67 | R54: 12.33 | S54: 79.29 | T54: 是
A55: 53 | B55: 20231222026 | C55: 文秘岗 | D55: 03 | E55: - | F55: 0 | G55: 85.20 | H55: 34.08 | I55: 82.76 | J55: 33.10 | K55: 0.47 | L55: 60.00 | M55: 12.48 | N55: 60.00 | O55: 3′54 | P55: 60.00 | Q55: 60.00 | R55: 12.00 | S55: 79.18 | T55: 是
A56: 54 | B56: 20231216010 | C56: 文秘岗 | D56: 03 | E56: - | F56: 0 | G56: 78.90 | H56: 31.56 | I56: 81.18 | J56: 32.47 | K56: 0.42 | L56: 55.00 | M56: 11.60 | N56: 90.00 | O56: 3′47 | P56: 80.00 | Q56: 75.00 | R56: 15.00 | S56: 79.03 | T56: 是
A57: 55 | B57: 20231218029 | C57: 文秘岗 | D57: 03 | E57: - | F57: 0 | G57: 82.50 | H57: 33.00 | I57: 77.60 | J57: 31.04 | K57: 0.65 | L57: 80.00 | M57: 11.15 | N57: 65.00 | O57: 3′36 | P57: 75.00 | Q57: 73.33 | R57: 14.67 | S57: 78.71 | T57: 是
A58: 56 | B58: 20231217016 | C58: 文秘岗 | D58: 03 | E58: - | F58: 0 | G58: 79.90 | H58: 31.96 | I58: 81.16 | J58: 32.46 | K58: 0.38 | L58: 45.00 | M58: 12.82 | N58: 70.00 | O58: 3′42 | P58: 85.00 | Q58: 66.67 | R58: 13.33 | S58: 77.76 | T58: 是
A59: 57 | B59: 20231209006 | C59: 文秘岗 | D59: 03 | E59: - | F59: 0 | G59: 81.90 | H59: 32.76 | I59: 82.84 | J59: 33.14 | K59: 0.46 | L59: 60.00 | M59: 12.55 | N59: 60.00 | O59: 4′02 | P59: 50.00 | Q59: 56.67 | R59: 11.33 | S59: 77.23 | T59: 是
A60: 58 | B60: 20231204015 | C60: 文秘岗 | D60: 03 | E60: - | F60: 0 | G60: 79.30 | H60: 31.72 | I60: 83.72 | J60: 33.49 | K60: 0.41 | L60: 45.00 | M60: 12.83 | N60: 55.00 | O60: 3′49 | P60: 65.00 | Q60: 55.00 | R60: 11.00 | S60: 76.21
A61: 59 | B61: 20231215015 | C61: 文秘岗 | D61: 03 | E61: - | F61: 0 | G61: 79.20 | H61: 31.68 | I61: 82.80 | J61: 33.12 | K61: 0.42 | L61: 50.00 | M61: 12.28 | N61: 65.00 | O61: 3′56 | P61: 55.00 | Q61: 56.67 | R61: 11.33 | S61: 76.13
A62: 60 | B62: 20231210010 | C62: 文秘岗 | D62: 03 | E62: - | F62: 0 | G62: 79.90 | H62: 31.96 | I62: 81.68 | J62: 32.67 | K62: 0.48 | L62: 65.00 | M62: 13.33 | N62: 45.00 | O62: 3′52 | P62: 60.00 | Q62: 56.67 | R62: 11.33 | S62: 75.97
A63: 61 | B63: 20231215029 | C63: 文秘岗 | D63: 03 | E63: - | F63: 0 | G63: 82.20 | H63: 32.88 | I63: 79.36 | J63: 31.74 | K63: 0.61 | L63: 70.00 | M63: 10.82 | N63: 70.00 | O63: 4′30 | P63: 30.00 | Q63: 56.67 | R63: 11.33 | S63: 75.96
A64: 62 | B64: 20231211008 | C64: 文秘岗 | D64: 03 | E64: - | F64: 0 | G64: 80.70 | H64: 32.28 | I64: 84.20 | J64: 33.68 | K64: 0.35 | L64: 30.00 | M64: 13.06 | N64: 50.00 | O64: 3′50 | P64: 65.00 | Q64: 48.33 | R64: 9.67 | S64: 75.63
A65: 63 | B65: 20231215014 | C65: 文秘岗 | D65: 03 | E65: - | F65: 0 | G65: 79.10 | H65: 31.64 | I65: 82.92 | J65: 33.17 | K65: 0.42 | L65: 55.00 | M65: 13.73 | N65: 55.00 | O65: 4′18 | P65: 50.00 | Q65: 53.33 | R65: 10.67 | S65: 75.47
A66: 64 | B66: 20231204019 | C66: 文秘岗 | D66: 03 | E66: - | F66: 0 | G66: 80.80 | H66: 32.32 | I66: 81.46 | J66: 32.58 | K66: 0.40 | L66: 45.00 | M66: 12.95 | N66: 50.00 | O66: 3′58 | P66: 55.00 | Q66: 50.00 | R66: 10.00 | S66: 74.90
A67: 65 | B67: 20231204020 | C67: 文秘岗 | D67: 03 | E67: - | F67: 0 | G67: 83.40 | H67: =G67*40% -> 33.36 | I67: 76.04 | J67: =I67*40% -> 30.42 | K67: 0.55 | L67: 55.00 | M67: 11.34 | N67: 60.00 | O67: 4′04 | P67: 50.00 | Q67: 55.00 | R67: 11.00 | S67: 74.78
A68: 66 | B68: 20231209020 | C68: 文秘岗 | D68: 03 | E68: - | F68: 0 | G68: 79.40 | H68: 31.76 | I68: 78.20 | J68: 31.28 | K68: 0.38 | L68: 40.00 | M68: 13.14 | N68: 50.00 | O68: 3′36 | P68: 75.00 | Q68: 55.00 | R68: 11.00 | S68: 74.04
A69: 67 | B69: 20231220022 | C69: 文秘岗 | D69: 03 | E69: - | F69: 0 | G69: 79.10 | H69: 31.64 | I69: 80.50 | J69: 32.20 | K69: 0.43 | L69: 50.00 | M69: 12.72 | N69: 55.00 | O69: 4′18 | P69: 35.00 | Q69: 46.67 | R69: 9.33 | S69: 73.17
A70: 68 | B70: 20231206024 | C70: 文秘岗 | D70: 03 | E70: - | F70: 0 | G70: 79.50 | H70: 31.80 | I70: 78.46 | J70: 31.38 | K70: 0.40 | L70: 45.00 | M70: 13.08 | N70: 50.00 | O70: 4′05 | P70: 50.00 | Q70: 48.33 | R70: 9.67 | S70: 72.85
A71: 69 | B71: 20231224019 | C71: 财会岗 | D71: 04 | E71: - | F71: 0 | G71: 75.90 | H71: 30.36 | I71: 77.58 | J71: 31.03 | K71: 0.41 | L71: 45.00 | M71: 12.29 | N71: 65.00 | O71: 4′53 | P71: 0.00 | Q71: 不合格 | R71: 不合格 | S71: 不合格
A72: 70 | B72: 20231223016 | C72: 财会岗 | D72: 04 | E72: - | F72: 0 | G72: 75.10 | H72: 30.04 | I72: 82.82 | J72: 33.13 | K72: 0.70 | L72: 95.00 | M72: 10.50 | N72: 75.00 | O72: 4′59 | P72: 0.00 | Q72: 不合格 | R72: 不合格 | S72: 不合格
A73: 71 | B73: 20231224005 | C73: 财会岗 | D73: 04 | E73: - | F73: 0 | G73: 88.20 | H73: 35.28 | I73: 82.16 | J73: 32.86 | K73: 0.55 | L73: 60.00 | M73: 11.57 | N73: 75.00 | O73: 4′15 | P73: 60.00 | Q73: =(L73+N73+P73)/3 -> 65.00 | R73: =Q73*0.2 -> 13.00 | S73: =F73+H73+J73+R73 -> 81.14 | T73: 是
A74: 72 | B74: 20231223030 | C74: 财会岗 | D74: 04 | E74: - | F74: 0 | G74: 76.70 | H74: 30.68 | I74: 83.92 | J74: 33.57 | K74: 0.63 | L74: 75.00 | M74: 10.43 | N74: 75.00 | O74: 4′18 | P74: 35.00 | Q74: =(L74+N74+P74)/3 -> 61.67 | R74: =Q74*0.2 -> 12.33 | S74: =F74+H74+J74+R74 -> 76.58 | T74: 是
A75: 73 | B75: 20231224015 | C75: 财会岗 | D75: 04 | E75: - | F75: 0 | G75: 87.40 | H75: 34.96 | I75: 75.08 | J75: 30.03 | K75: 0.50 | L75: 70.00 | M75: 14.11 | N75: 30.00 | O75: 4′05 | P75: 50.00 | Q75: =(L75+N75+P75)/3 -> 50.00 | R75: =Q75*0.2 -> 10.00 | S75: =F75+H75+J75+R75 -> 74.99
A76: 74 | B76: 20231224006 | C76: 财会岗 | D76: 04 | E76: - | F76: 0 | G76: 75.00 | H76: 30.00 | I76: 83.44 | J76: 33.38 | K76: 0.50 | L76: 45.00 | M76: 12.56 | N76: 40.00 | O76: 4′05 | P76: 50.00 | Q76: =(L76+N76+P76)/3 -> 45.00 | R76: =Q76*0.2 -> 9.00 | S76: =F76+H76+J76+R76 -> 72.38
A77: 75 | B77: 20231243002 | C77: 巡逻岗 | D77: 05 | E77: 是 | F77: 2 | G77: 54.60 | H77: 21.84 | I77: 76.40 | J77: 30.56 | K77: 缺考 | L77: 缺考 | M77: 缺考 | N77: 缺考 | O77: 缺考 | P77: 缺考 | Q77: 缺考 | R77: 缺考 | S77: 缺考
A78: 76 | B78: 20231244014 | C78: 巡逻岗 | D78: 05 | E78: 是 | F78: 2 | G78: 52.10 | H78: 20.84 | I78: 76.18 | J78: 30.47 | K78: 缺考 | L78: 缺考 | M78: 缺考 | N78: 缺考 | O78: 缺考 | P78: 缺考 | Q78: 缺考 | R78: 缺考 | S78: 缺考
A79: 77 | B79: 20231243010 | C79: 巡逻岗 | D79: 05 | E79: 是 | F79: 2 | G79: 74.90 | H79: 29.96 | I79: 77.48 | J79: 30.99 | K79: 0.57 | L79: 65.00 | M79: 11.78 | N79: 70.00 | O79: 4′57 | P79: 0.00 | Q79: 不合格 | R79: 不合格 | S79: 不合格
A80: 78 | B80: 20231243011 | C80: 巡逻岗 | D80: 05 | E80: 是 | F80: 2 | G80: 64.50 | H80: 25.80 | I80: 77.42 | J80: 30.97 | K80: 0.53 | L80: 50.00 | M80: 11.77 | N80: 55.00 | O80: 4′35 | P80: 0.00 | Q80: 不合格 | R80: 不合格 | S80: 不合格
A81: 79 | B81: 20231243018 | C81: 巡逻岗 | D81: 05 | E81: 是 | F81: 2 | G81: 63.10 | H81: 25.24 | I81: 78.68 | J81: 31.47 | K81: 0.70 | L81: 100.00 | M81: 11.39 | N81: 75.00 | O81: 4′51 | P81: 0.00 | Q81: 不合格 | R81: 不合格 | S81: 不合格
A82: 80 | B82: 20231243014 | C82: 巡逻岗 | D82: 05 | E82: 是 | F82: 2 | G82: 61.80 | H82: 24.72 | I82: 76.32 | J82: 30.53 | K82: 0.56 | L82: 60.00 | M82: 10.58 | N82: 75.00 | O82: 4′37 | P82: 0.00 | Q82: 不合格 | R82: 不合格 | S82: 不合格
A83: 81 | B83: 20231243029 | C83: 巡逻岗 | D83: 05 | E83: 是 | F83: 2 | G83: 59.90 | H83: 23.96 | I83: 77.70 | J83: 31.08 | K83: 0.53 | L83: 55.00 | M83: 11.51 | N83: 75.00 | O83: 4′47 | P83: 0.00 | Q83: 不合格 | R83: 不合格 | S83: 不合格
A84: 82 | B84: 20231243030 | C84: 巡逻岗 | D84: 05 | E84: 是 | F84: 2 | G84: 57.00 | H84: 22.80 | I84: 75.96 | J84: 30.38 | K84: 0.46 | L84: 45.00 | M84: 12.02 | N84: 70.00 | O84: 5′03 | P84: 0.00 | Q84: 不合格 | R84: 不合格 | S84: 不合格
A85: 83 | B85: 20231243004 | C85: 巡逻岗 | D85: 05 | E85: 是 | F85: 2 | G85: 53.60 | H85: 21.44 | I85: 75.84 | J85: 30.34 | K85: 0.52 | L85: 50.00 | M85: 10.94 | N85: 70.00 | O85: 4′57 | P85: 0.00 | Q85: 不合格 | R85: 不合格 | S85: 不合格
A86: 84 | B86: 20231243013 | C86: 巡逻岗 | D86: 05 | E86: 是 | F86: 2 | G86: 69.90 | H86: 27.96 | I86: 78.44 | J86: 31.38 | K86: 0.63 | L86: 80.00 | M86: 10.08 | N86: 100.00 | O86: 3′36 | P86: 95.00 | Q86: =(L86+N86+P86)/3 -> 91.67 | R86: =Q86*0.2 -> 18.33 | S86: =F86+H86+J86+R86 -> 79.67 | T86: 是
A87: 85 | B87: 20231244019 | C87: 巡逻岗 | D87: 05 | E87: 是 | F87: 2 | G87: 63.30 | H87: 25.32 | I87: 78.34 | J87: 31.34 | K87: 0.68 | L87: 95.00 | M87: 10.64 | N87: 90.00 | O87: 3′38 | P87: 95.00 | Q87: 93.33 | R87: 18.67 | S87: 77.32 | T87: 是
A88: 86 | B88: 20231243007 | C88: 巡逻岗 | D88: 05 | E88: 是 | F88: 2 | G88: 68.10 | H88: 27.24 | I88: 76.40 | J88: 30.56 | K88: 0.61 | L88: 80.00 | M88: 10.42 | N88: 95.00 | O88: 4′06 | P88: 75.00 | Q88: 83.33 | R88: 16.67 | S88: 76.47 | T88: 是
A89: 87 | B89: 20231243026 | C89: 巡逻岗 | D89: 05 | E89: 是 | F89: 2 | G89: 68.60 | H89: 27.44 | I89: 77.72 | J89: 31.09 | K89: 0.60 | L89: 70.00 | M89: 10.20 | N89: 80.00 | O89: 3′33 | P89: 80.00 | Q89: 76.67 | R89: 15.33 | S89: 75.86 | T89: 是
A90: 88 | B90: 20231243008 | C90: 巡逻岗 | D90: 05 | E90: 是 | F90: 2 | G90: 61.60 | H90: 24.64 | I90: 79.76 | J90: 31.90 | K90: 0.70 | L90: 100.00 | M90: 10.31 | N90: 95.00 | O90: 4′12 | P90: 60.00 | Q90: 85.00 | R90: 17.00 | S90: 75.54 | T90: 是
A91: 89 | B91: 20231243019 | C91: 巡逻岗 | D91: 05 | E91: 是 | F91: 2 | G91: 65.00 | H91: 26.00 | I91: 80.05 | J91: 32.02 | K91: 0.59 | L91: 70.00 | M91: 11.08 | N91: 80.00 | O91: 3′53 | P91: 80.00 | Q91: 76.67 | R91: 15.33 | S91: 75.35 | T91: 是
A92: 90 | B92: 20231244005 | C92: 巡逻岗 | D92: 05 | E92: 是 | F92: 2 | G92: 60.10 | H92: 24.04 | I92: 78.90 | J92: 31.56 | K92: 0.69 | L92: 95.00 | M92: 10.12 | N92: 95.00 | O92: 3′57 | P92: 75.00 | Q92: 88.33 | R92: 17.67 | S92: 75.27 | T92: 是
A93: 91 | B93: 20231244013 | C93: 巡逻岗 | D93: 05 | E93: 是 | F93: 2 | G93: 64.20 | H93: 25.68 | I93: 79.22 | J93: 31.69 | K93: 0.62 | L93: 75.00 | M93: 10.19 | N93: 80.00 | O93: 4′02 | P93: 50.00 | Q93: 68.33 | R93: 13.67 | S93: 73.03 | T93: 是
A94: 92 | B94: 20231243001 | C94: 巡逻岗 | D94: 05 | E94: 是 | F94: 2 | G94: 65.80 | H94: 26.32 | I94: 77.16 | J94: 30.86 | K94: 0.57 | L94: 60.00 | M94: 10.69 | N94: 75.00 | O94: 3′48 | P94: 65.00 | Q94: 66.67 | R94: 13.33 | S94: 72.52 | T94: 是
A95: 93 | B95: 20231243028 | C95: 巡逻岗 | D95: 05 | E95: 是 | F95: 2 | G95: 60.40 | H95: 24.16 | I95: 77.74 | J95: 31.10 | K95: 0.64 | L95: 85.00 | M95: 10.97 | N95: 85.00 | O95: 4′17 | P95: 55.00 | Q95: 75.00 | R95: 15.00 | S95: 72.26 | T95: 是
A96: 94 | B96: 20231244002 | C96: 巡逻岗 | D96: 05 | E96: 是 | F96: 2 | G96: 56.60 | H96: 22.64 | I96: 77.68 | J96: 31.07 | K96: 0.55 | L96: 60.00 | M96: 10.39 | N96: 95.00 | O96: 3′46 | P96: 85.00 | Q96: 80.00 | R96: 16.00 | S96: 71.71
A97: 95 | B97: 20231243022 | C97: 巡逻岗 | D97: 05 | E97: 是 | F97: 2 | G97: 61.70 | H97: 24.68 | I97: 80.80 | J97: 32.32 | K97: 0.65 | L97: 80.00 | M97: 10.56 | N97: 75.00 | O97: 4′19 | P97: 35.00 | Q97: 63.33 | R97: 12.67 | S97: 71.67
A98: 96 | B98: 20231243005 | C98: 巡逻岗 | D98: 05 | E98: 是 | F98: 2 | G98: 69.30 | H98: 27.72 | I98: 78.72 | J98: 31.49 | K98: 0.55 | L98: 55.00 | M98: 11.72 | N98: 55.00 | O98: 4′09 | P98: 45.00 | Q98: 51.67 | R98: 10.33 | S98: 71.54
A99: 97 | B99: 20231243024 | C99: 巡逻岗 | D99: 05 | E99: 是 | F99: 2 | G99: 62.30 | H99: 24.92 | I99: 76.16 | J99: 30.46 | K99: 0.57 | L99: 65.00 | M99: 10.91 | N99: 85.00 | O99: 4′16 | P99: 55.00 | Q99: 68.33 | R99: 13.67 | S99: 71.05
A100: 98 | B100: 20231243003 | C100: 巡逻岗 | D100: 05 | E100: 是 | F100: 2 | G100: 62.50 | H100: 25.00 | I100: 75.68 | J100: 30.27 | K100: 0.56 | L100: 60.00 | M100: 11.83 | N100: 55.00 | O100: 3′51 | P100: 60.00 | Q100: 58.33 | R100: 11.67 | S100: 68.94
A101: 99 | B101: 20231244011 | C101: 巡逻岗 | D101: 05 | E101: 是 | F101: 2 | G101: 57.30 | H101: 22.92 | I101: 78.80 | J101: 31.52 | K101: 0.56 | L101: 60.00 | M101: 10.27 | N101: 80.00 | O101: 4′06 | P101: 45.00 | Q101: 61.67 | R101: 12.33 | S101: 68.77
A102: 100 | B102: 20231243015 | C102: 巡逻岗 | D102: 05 | E102: 是 | F102: 2 | G102: 59.20 | H102: 23.68 | I102: 77.08 | J102: 30.83 | K102: 0.59 | L102: 65.00 | M102: 11.26 | N102: 65.00 | O102: 4′29 | P102: 30.00 | Q102: 53.33 | R102: 10.67 | S102: 67.18
A103: 101 | B103: 20231243025 | C103: 巡逻岗 | D103: 05 | E103: 是 | F103: 2 | G103: 53.60 | H103: 21.44 | I103: 75.38 | J103: 30.15 | K103: 0.54 | L103: 55.00 | M103: 10.92 | N103: 70.00 | O103: 4′23 | P103: 30.00 | Q103: 51.67 | R103: 10.33 | S103: 63.93
A104: 102 | B104: 20231245013 | C104: 巡逻岗 | D104: 06 | E104: 是 | F104: 2 | G104: 58.70 | H104: 23.48 | I104: 82.48 | J104: 32.99 | K104: 缺考 | L104: 缺考 | M104: 缺考 | N104: 缺考 | O104: 缺考 | P104: 缺考 | Q104: 缺考 | R104: 缺考 | S104: 缺考
A105: 103 | B105: 20231245016 | C105: 巡逻岗 | D105: 06 | E105: 是 | F105: 2 | G105: 54.80 | H105: 21.92 | I105: 74.30 | J105: 29.72 | K105: 缺考 | L105: 缺考 | M105: 违例 | N105: 缺考 | O105: 缺考 | P105: 缺考 | Q105: 缺考 | R105: 缺考 | S105: 缺考
A106: 104 | B106: 20231244027 | C106: 巡逻岗 | D106: 06 | E106: 是 | F106: 2 | G106: 53.40 | H106: 21.36 | I106: 75.22 | J106: 30.09 | K106: 缺考 | L106: 缺考 | M106: 缺考 | N106: 缺考 | O106: 缺考 | P106: 缺考 | Q106: 缺考 | R106: 缺考 | S106: 缺考
A107: 105 | B107: 20231244020 | C107: 巡逻岗 | D107: 06 | E107: 是 | F107: 2 | G107: 53.30 | H107: 21.32 | I107: 76.60 | J107: 30.64 | K107: 缺考 | L107: 缺考 | M107: 违例 | N107: 缺考 | O107: 缺考 | P107: 缺考 | Q107: 缺考 | R107: 缺考 | S107: 缺考
A108: 106 | B108: 20231245004 | C108: 巡逻岗 | D108: 06 | E108: 是 | F108: 2 | G108: 52.40 | H108: 20.96 | I108: 79.44 | J108: 31.78 | K108: 缺考 | L108: 缺考 | M108: 缺考 | N108: 缺考 | O108: 缺考 | P108: 缺考 | Q108: 缺考 | R108: 缺考 | S108: 缺考
A109: 107 | B109: 20231244023 | C109: 巡逻岗 | D109: 06 | E109: 是 | F109: 2 | G109: 63.30 | H109: 25.32 | I109: 82.72 | J109: 33.09 | K109: 0.58 | L109: 65.00 | M109: 10.96 | N109: 70.00 | O109: 4′43 | P109: 0.00 | Q109: 不合格 | R109: 不合格 | S109: 不合格
A110: 108 | B110: 20231245021 | C110: 巡逻岗 | D110: 06 | E110: 是 | F110: 2 | G110: 60.40 | H110: 24.16 | I110: 81.96 | J110: 32.78 | K110: 0.62 | L110: 80.00 | M110: 11.37 | N110: 75.00 | O110: 4′48 | P110: 0.00 | Q110: 不合格 | R110: 不合格 | S110: 不合格
A111: 109 | B111: 20231245006 | C111: 巡逻岗 | D111: 06 | E111: 是 | F111: 2 | G111: 55.20 | H111: 22.08 | I111: 76.64 | J111: 30.66 | K111: 0.65 | L111: 90.00 | M111: 11.11 | N111: 85.00 | O111: 0.00 | P111: 0.00 | Q111: 不合格 | R111: 不合格 | S111: 不合格
A112: 110 | B112: 20231245015 | C112: 巡逻岗 | D112: 06 | E112: 是 | F112: 2 | G112: 54.90 | H112: 21.96 | I112: 73.76 | J112: 29.50 | K112: 0.55 | L112: 55.00 | M112: 10.02 | N112: 85.00 | O112: 4′54 | P112: 0.00 | Q112: 不合格 | R112: 不合格 | S112: 不合格
A113: 111 | B113: 20231244029 | C113: 巡逻岗 | D113: 06 | E113: 是 | F113: 2 | G113: 54.30 | H113: 21.72 | I113: 78.28 | J113: 31.31 | K113: 0.53 | L113: 50.00 | M113: 10.84 | N113: 70.00 | O113: 4′35 | P113: 0.00 | Q113: 不合格 | R113: 不合格 | S113: 不合格
A114: 112 | B114: 20231245007 | C114: 巡逻岗 | D114: 06 | E114: 是 | F114: 2 | G114: 71.70 | H114: 28.68 | I114: 80.66 | J114: 32.26 | K114: 0.70 | L114: 95.00 | M114: 9.75 | N114: 90.00 | O114: 3′27 | P114: 95.00 | Q114: =(L114+N114+P114)/3 -> 93.33 | R114: =Q114*0.2 -> 18.67 | S114: =F114+H114+J114+R114 -> 81.61 | T114: 是
A115: 113 | B115: 20231245019 | C115: 巡逻岗 | D115: 06 | E115: 是 | F115: 2 | G115: 63.40 | H115: 25.36 | I115: 82.96 | J115: 33.18 | K115: 0.60 | L115: 75.00 | M115: 10.87 | N115: 85.00 | O115: 4′00 | P115: 75.00 | Q115: 78.33 | R115: 15.67 | S115: 76.21 | T115: 是
A116: 114 | B116: 20231245011 | C116: 巡逻岗 | D116: 06 | E116: 是 | F116: 2 | G116: 56.60 | H116: 22.64 | I116: 83.02 | J116: 33.21 | K116: 0.65 | L116: 85.00 | M116: 10.29 | N116: 95.00 | O116: 3′57 | P116: 75.00 | Q116: 85.00 | R116: 17.00 | S116: 74.85 | T116: 是
A117: 115 | B117: 20231245005 | C117: 巡逻岗 | D117: 06 | E117: 是 | F117: 2 | G117: 58.60 | H117: 23.44 | I117: 76.80 | J117: 30.72 | K117: 0.69 | L117: 90.00 | M117: 9.82 | N117: 85.00 | O117: 3′40 | P117: 75.00 | Q117: 83.33 | R117: 16.67 | S117: 72.83 | T117: 是
A118: 116 | B118: 20231244030 | C118: 巡逻岗 | D118: 06 | E118: 是 | F118: 2 | G118: 59.80 | H118: 23.92 | I118: 78.66 | J118: 31.46 | K118: 0.58 | L118: 65.00 | M118: 11.27 | N118: 65.00 | O118: 3′30 | P118: 90.00 | Q118: 73.33 | R118: 14.67 | S118: 72.05 | T118: 是
A119: 117 | B119: 20231244022 | C119: 巡逻岗 | D119: 06 | E119: 是 | F119: 2 | G119: 65.80 | H119: 26.32 | I119: 76.78 | J119: 30.71 | K119: 0.58 | L119: 65.00 | M119: 10.74 | N119: 70.00 | O119: 3′52 | P119: 60.00 | Q119: 65.00 | R119: 13.00 | S119: 72.03 | T119: 是
A120: 118 | B120: 20231245017 | C120: 巡逻岗 | D120: 06 | E120: 是 | F120: 2 | G120: 52.10 | H120: 20.84 | I120: 79.52 | J120: 31.81 | K120: 0.71 | L120: 95.00 | M120: 10.08 | N120: 85.00 | O120: 3′39 | P120: 75.00 | Q120: 85.00 | R120: 17.00 | S120: 71.65 | T120: 是
A121: 119 | B121: 20231245012 | C121: 巡逻岗 | D121: 06 | E121: 是 | F121: 2 | G121: 62.20 | H121: 24.88 | I121: 79.52 | J121: 31.81 | K121: 0.60 | L121: 70.00 | M121: 10.43 | N121: 75.00 | O121: 4′14 | P121: 40.00 | Q121: 61.67 | R121: 12.33 | S121: 71.02 | T121: 是
A122: 120 | B122: 20231245028 | C122: 巡逻岗 | D122: 06 | E122: 是 | F122: 2 | G122: 54.20 | H122: 21.68 | I122: 77.06 | J122: 30.82 | K122: 0.59 | L122: 70.00 | M122: 10.71 | N122: 85.00 | O122: 3′49 | P122: 85.00 | Q122: 80.00 | R122: 16.00 | S122: 70.50 | T122: 是
A123: 121 | B123: 20231246006 | C123: 巡逻岗 | D123: 06 | E123: 是 | F123: 2 | G123: 58.60 | H123: 23.44 | I123: 81.10 | J123: 32.44 | K123: 0.55 | L123: 55.00 | M123: 11.28 | N123: 65.00 | O123: 3′47 | P123: 65.00 | Q123: 61.67 | R123: 12.33 | S123: 70.21 | T123: 是
A124: 122 | B124: 20231245018 | C124: 巡逻岗 | D124: 06 | E124: 是 | F124: 2 | G124: 59.70 | H124: 23.88 | I124: 77.56 | J124: 31.02 | K124: 0.63 | L124: 75.00 | M124: 10.14 | N124: 80.00 | O124: 4′14 | P124: 40.00 | Q124: 65.00 | R124: 13.00 | S124: 69.90
A125: 123 | B125: 20231245009 | C125: 巡逻岗 | D125: 06 | E125: 是 | F125: 2 | G125: 57.90 | H125: 23.16 | I125: 78.88 | J125: 31.55 | K125: 0.56 | L125: 65.00 | M125: 11.87 | N125: 70.00 | O125: 4′12 | P125: 60.00 | Q125: 65.00 | R125: 13.00 | S125: 69.71
A126: 124 | B126: 20231244028 | C126: 巡逻岗 | D126: 06 | E126: 是 | F126: 2 | G126: 60.00 | H126: 24.00 | I126: 78.68 | J126: 31.47 | K126: 0.52 | L126: 50.00 | M126: 11.43 | N126: 60.00 | O126: 3′44 | P126: 70.00 | Q126: 60.00 | R126: 12.00 | S126: 69.47
A127: 125 | B127: 20231245027 | C127: 巡逻岗 | D127: 06 | E127: 是 | F127: 2 | G127: 54.00 | H127: 21.60 | I127: 75.74 | J127: 30.30 | K127: 0.63 | L127: 75.00 | M127: 10.53 | N127: 75.00 | O127: 3′39 | P127: 75.00 | Q127: 75.00 | R127: 15.00 | S127: 68.90
A128: 126 | B128: 20231246001 | C128: 巡逻岗 | D128: 06 | E128: 是 | F128: 2 | G128: 57.60 | H128: 23.04 | I128: 76.86 | J128: 30.74 | K128: 0.63 | L128: 80.00 | M128: 10.94 | N128: 85.00 | O128: 4′41 | P128: 30.00 | Q128: 65.00 | R128: 13.00 | S128: 68.78
A129: 127 | B129: 20231245030 | C129: 巡逻岗 | D129: 06 | E129: 是 | F129: 2 | G129: 55.70 | H129: 22.28 | I129: 79.80 | J129: 31.92 | K129: 0.59 | L129: 65.00 | M129: 11.50 | N129: 60.00 | O129: 3′51 | P129: 60.00 | Q129: 61.67 | R129: 12.33 | S129: 68.53
A130: 128 | B130: 20231246003 | C130: 巡逻岗 | D130: 06 | E130: 是 | F130: 2 | G130: 57.50 | H130: 23.00 | I130: 76.58 | J130: 30.63 | K130: 0.53 | L130: 60.00 | M130: 10.99 | N130: 90.00 | O130: 4′53 | P130: 30.00 | Q130: 60.00 | R130: 12.00 | S130: 67.63
A131: 129 | B131: 20231245002 | C131: 巡逻岗 | D131: 06 | E131: 是 | F131: 2 | G131: 52.60 | H131: =G131*40% -> 21.04 | I131: 75.14 | J131: =I131*40% -> 30.06 | K131: 0.58 | L131: 65.00 | M131: 10.93 | N131: 70.00 | O131: 4′08 | P131: 45.00 | Q131: 60.00 | R131: 12.00 | S131: 65.10
A132: 130 | B132: 20231225007 | C132: 巡逻岗 | D132: 07 | E132: 是 | F132: 2 | G132: 67.30 | H132: 26.92 | I132: 72.04 | J132: 28.82 | K132: 缺考 | L132: 缺考 | M132: 缺考 | N132: 缺考 | O132: 缺考 | P132: 缺考 | Q132: 缺考 | R132: 缺考 | S132: 缺考
A133: 131 | B133: 20231225022 | C133: 巡逻岗 | D133: 07 | E133: 是 | F133: 2 | G133: 60.30 | H133: 24.12 | I133: 77.06 | J133: 30.82 | K133: 缺考 | L133: 缺考 | M133: 缺考 | N133: 缺考 | O133: 缺考 | P133: 缺考 | Q133: 缺考 | R133: 缺考 | S133: 缺考
A134: 132 | B134: 20231225003 | C134: 巡逻岗 | D134: 07 | E134: 是 | F134: 2 | G134: 62.50 | H134: 25.00 | I134: 72.02 | J134: 28.81 | K134: 0.52 | L134: 60.00 | M134: 11.53 | N134: 80.00 | O134: 5′05 | P134: 0.00 | Q134: 不合格 | R134: 不合格 | S134: 不合格
A135: 133 | B135: 20231224024 | C135: 巡逻岗 | D135: 07 | E135: 是 | F135: 2 | G135: 62.10 | H135: 24.84 | I135: 73.52 | J135: 29.41 | K135: 0.52 | L135: 50.00 | M135: 10.46 | N135: 75.00 | O135: 4′49 | P135: 0.00 | Q135: 不合格 | R135: 不合格 | S135: 不合格
A136: 134 | B136: 20231225029 | C136: 巡逻岗 | D136: 07 | E136: 是 | F136: 2 | G136: 56.10 | H136: 22.44 | I136: 72.10 | J136: 28.84 | K136: 0.64 | L136: 90.00 | M136: 10.68 | N136: 95.00 | O136: 5′06 | P136: 0.00 | Q136: 不合格 | R136: 不合格 | S136: 不合格
A137: 135 | B137: 20231225024 | C137: 巡逻岗 | D137: 07 | E137: 是 | F137: 2 | G137: 77.00 | H137: 30.80 | I137: 83.64 | J137: 33.46 | K137: 0.62 | L137: 80.00 | M137: 11.17 | N137: 80.00 | O137: 3′54 | P137: 80.00 | Q137: =(L137+N137+P137)/3 -> 80.00 | R137: =Q137*0.2 -> 16.00 | S137: =F137+H137+J137+R137 -> 82.26 | T137: 是
A138: 136 | B138: 20231225004 | C138: 巡逻岗 | D138: 07 | E138: 是 | F138: 2 | G138: 73.10 | H138: 29.24 | I138: 77.32 | J138: 30.93 | K138: 0.60 | L138: 75.00 | M138: 10.22 | N138: 95.00 | O138: 3′46 | P138: 85.00 | Q138: 85.00 | R138: 17.00 | S138: 79.17 | T138: 是
A139: 137 | B139: 20231225023 | C139: 巡逻岗 | D139: 07 | E139: 是 | F139: 2 | G139: 62.70 | H139: 25.08 | I139: 77.78 | J139: 31.11 | K139: 0.70 | L139: 100.00 | M139: 10.01 | N139: 100.00 | O139: 3′34 | P139: 100.00 | Q139: 100.00 | R139: 20.00 | S139: 78.19 | T139: 是
A140: 138 | B140: 20231224028 | C140: 巡逻岗 | D140: 07 | E140: 是 | F140: 2 | G140: 70.30 | H140: 28.12 | I140: 82.94 | J140: 33.18 | K140: 0.59 | L140: 65.00 | M140: 10.28 | N140: 80.00 | O140: 3′40 | P140: 75.00 | Q140: 73.33 | R140: 14.67 | S140: 77.96 | T140: 是
A141: 139 | B141: 20231224023 | C141: 巡逻岗 | D141: 07 | E141: 是 | F141: 2 | G141: 78.80 | H141: 31.52 | I141: 74.58 | J141: 29.83 | K141: 0.56 | L141: 60.00 | M141: 10.56 | N141: 75.00 | O141: 3′45 | P141: 70.00 | Q141: 68.33 | R141: 13.67 | S141: 77.02 | T141: 是
A142: 140 | B142: 20231225030 | C142: 巡逻岗 | D142: 07 | E142: 是 | F142: 2 | G142: 71.60 | H142: 28.64 | I142: 79.96 | J142: 31.98 | K142: 0.59 | L142: 65.00 | M142: 11.48 | N142: 60.00 | O142: 3′45 | P142: 70.00 | Q142: 65.00 | R142: 13.00 | S142: 75.62 | T142: 是
A143: 141 | B143: 20231225026 | C143: 巡逻岗 | D143: 07 | E143: 是 | F143: 2 | G143: 65.90 | H143: 26.36 | I143: 74.74 | J143: 29.90 | K143: 0.60 | L143: 75.00 | M143: 10.93 | N143: 85.00 | O143: 3′44 | P143: 90.00 | Q143: 83.33 | R143: 16.67 | S143: 74.92 | T143: 是
A144: 142 | B144: 20231224027 | C144: 巡逻岗 | D144: 07 | E144: 是 | F144: 2 | G144: 73.10 | H144: 29.24 | I144: 81.38 | J144: 32.55 | K144: 0.55 | L144: 55.00 | M144: 10.76 | N144: 70.00 | O144: 4′17 | P144: 35.00 | Q144: 53.33 | R144: 10.67 | S144: 74.46 | T144: 是
A145: 143 | B145: 20231224030 | C145: 巡逻岗 | D145: 07 | E145: 是 | F145: 2 | G145: 64.20 | H145: 25.68 | I145: 76.76 | J145: 30.70 | K145: 0.73 | L145: 100.00 | M145: 9.89 | N145: 85.00 | O145: 3′56 | P145: 55.00 | Q145: 80.00 | R145: 16.00 | S145: 74.38 | T145: 是
A146: 144 | B146: 20231225001 | C146: 巡逻岗 | D146: 07 | E146: 是 | F146: 2 | G146: 68.00 | H146: 27.20 | I146: 77.36 | J146: 30.94 | K146: 0.58 | L146: 65.00 | M146: 10.45 | N146: 75.00 | O146: 3′55 | P146: 60.00 | Q146: 66.67 | R146: 13.33 | S146: 73.48 | T146: 是
A147: 145 | B147: 20231225016 | C147: 巡逻岗 | D147: 07 | E147: 是 | F147: 2 | G147: 67.80 | H147: 27.12 | I147: 74.44 | J147: 29.78 | K147: 0.68 | L147: 90.00 | M147: 11.70 | N147: 55.00 | O147: 3′52 | P147: 60.00 | Q147: 68.33 | R147: 13.67 | S147: 72.56
A148: 146 | B148: 20231225020 | C148: 巡逻岗 | D148: 07 | E148: 是 | F148: 2 | G148: 63.90 | H148: 25.56 | I148: 77.36 | J148: 30.94 | K148: 0.64 | L148: 90.00 | M148: 11.31 | N148: 80.00 | O148: 4′45 | P148: 40.00 | Q148: 70.00 | R148: 14.00 | S148: 72.50
A149: 147 | B149: 20231225012 | C149: 巡逻岗 | D149: 07 | E149: 是 | F149: 2 | G149: 65.00 | H149: 26.00 | I149: 73.62 | J149: 29.45 | K149: 0.61 | L149: 75.00 | M149: 10.59 | N149: 90.00 | O149: 4′20 | P149: 55.00 | Q149: 73.33 | R149: 14.67 | S149: 72.11
A150: 148 | B150: 20231225019 | C150: 巡逻岗 | D150: 07 | E150: 是 | F150: 2 | G150: 65.80 | H150: 26.32 | I150: 77.72 | J150: 31.09 | K150: 0.57 | L150: 65.00 | M150: 11.28 | N150: 80.00 | O150: 4′35 | P150: 40.00 | Q150: 61.67 | R150: 12.33 | S150: 71.74
A151: 149 | B151: 20231225017 | C151: 巡逻岗 | D151: 07 | E151: 是 | F151: 2 | G151: 62.20 | H151: 24.88 | I151: 72.40 | J151: 28.96 | K151: 0.58 | L151: 70.00 | M151: 10.80 | N151: 85.00 | O151: 4′05 | P151: 70.00 | Q151: 75.00 | R151: 15.00 | S151: 70.84
A152: 150 | B152: 20231226001 | C152: 巡逻岗 | D152: 07 | E152: 是 | F152: 2 | G152: 67.60 | H152: 27.04 | I152: 72.54 | J152: 29.02 | K152: 0.55 | L152: 60.00 | M152: 11.46 | N152: 75.00 | O152: 4′21 | P152: 50.00 | Q152: 61.67 | R152: 12.33 | S152: 70.39
A153: 151 | B153: 20231225018 | C153: 巡逻岗 | D153: 07 | E153: 是 | F153: 2 | G153: 66.80 | H153: 26.72 | I153: 74.46 | J153: 29.78 | K153: 0.53 | L153: 55.00 | M153: 11.34 | N153: 75.00 | O153: 4′28 | P153: 45.00 | Q153: 58.33 | R153: 11.67 | S153: 70.17
A154: 152 | B154: 20231225002 | C154: 巡逻岗 | D154: 07 | E154: 是 | F154: 2 | G154: 60.80 | H154: 24.32 | I154: 74.62 | J154: 29.85 | K154: 0.55 | L154: 65.00 | M154: 12.36 | N154: 65.00 | O154: 4′17 | P154: 65.00 | Q154: 65.00 | R154: 13.00 | S154: 69.17
A155: 153 | B155: 20231225008 | C155: 巡逻岗 | D155: 07 | E155: 是 | F155: 2 | G155: 63.20 | H155: 25.28 | I155: 75.22 | J155: 30.09 | K155: 0.60 | L155: 70.00 | M155: 11.42 | N155: 60.00 | O155: 4′16 | P155: 35.00 | Q155: 55.00 | R155: 11.00 | S155: 68.37
A156: 154 | B156: 20231225013 | C156: 巡逻岗 | D156: 07 | E156: 是 | F156: 2 | G156: 62.00 | H156: 24.80 | I156: 78.14 | J156: 31.26 | K156: 0.47 | L156: 40.00 | M156: 12.43 | N156: 60.00 | O156: 4′30 | P156: 45.00 | Q156: 48.33 | R156: 9.67 | S156: 67.72
A157: 155 | B157: 20231225006 | C157: 巡逻岗 | D157: 07 | E157: 是 | F157: 2 | G157: 58.50 | H157: 23.40 | I157: 76.66 | J157: 30.66 | K157: 0.53 | L157: 55.00 | M157: 11.14 | N157: 80.00 | O157: 4′43 | P157: 30.00 | Q157: 55.00 | R157: 11.00 | S157: 67.06
A158: 156 | B158: 20231225009 | C158: 巡逻岗 | D158: 07 | E158: 是 | F158: 2 | G158: 59.60 | H158: 23.84 | I158: 74.82 | J158: 29.93 | K158: 0.56 | L158: 60.00 | M158: 11.34 | N158: 60.00 | O158: 4′19 | P158: 35.00 | Q158: 51.67 | R158: 10.33 | S158: 66.10
A159: 157 | B159: 20231226004 | C159: 警犬训练岗 | D159: 08 | E159: - | F159: 0 | G159: 60.00 | H159: 24.00 | I159: 70.66 | J159: 28.26 | K159: 缺考 | L159: 缺考 | M159: 缺考 | N159: 缺考 | O159: 缺考 | P159: 缺考 | Q159: 缺考 | R159: 缺考 | S159: 缺考
A160: 158 | B160: 20231226007 | C160: 警犬训练岗 | D160: 08 | E160: - | F160: 0 | G160: 70.20 | H160: 28.08 | I160: 78.64 | J160: 31.46 | K160: 0.55 | L160: 55.00 | M160: 11.65 | N160: 55.00 | O160: 4′34 | P160: 0.00 | Q160: 不合格 | R160: 不合格 | S160: 不合格
A161: 159 | B161: 20231226010 | C161: 警犬训练岗 | D161: 08 | E161: - | F161: 0 | G161: 77.80 | H161: 31.12 | I161: 76.14 | J161: 30.46 | K161: 0.61 | L161: 75.00 | M161: 11.11 | N161: 80.00 | O161: 3′56 | P161: 75.00 | Q161: =(L161+N161+P161)/3 -> 76.67 | R161: =Q161*0.2 -> 15.33 | S161: =F161+H161+J161+R161 -> 76.91 | T161: 是
A162: 160 | B162: 20231226012 | C162: 警犬训练岗 | D162: 08 | E162: 是 | F162: 2 | G162: 76.50 | H162: 30.60 | I162: 76.30 | J162: 30.52 | K162: 0.57 | L162: 65.00 | M162: 10.90 | N162: 85.00 | O162: 4′27 | P162: 45.00 | Q162: 65.00 | R162: 13.00 | S162: 76.12 | T162: 是
A163: 161 | B163: 20231226005 | C163: 警犬训练岗 | D163: 08 | E163: - | F163: 0 | G163: 78.40 | H163: 31.36 | I163: 79.44 | J163: 31.78 | K163: 0.54 | L163: 65.00 | M163: 12.36 | N163: 65.00 | O163: 4′22 | P163: 60.00 | Q163: 63.33 | R163: 12.67 | S163: 75.80 | T163: 是
A164: 162 | B164: 20231226013 | C164: 警犬训练岗 | D164: 08 | E164: - | F164: 0 | G164: 71.30 | H164: 28.52 | I164: 72.18 | J164: 28.87 | K164: 0.65 | L164: 80.00 | M164: 11.04 | N164: 65.00 | O164: 4′04 | P164: 50.00 | Q164: 65.00 | R164: 13.00 | S164: 70.39 | T164: 是
A165: 163 | B165: 20231226008 | C165: 警犬训练岗 | D165: 08 | E165: - | F165: 0 | G165: 72.30 | H165: 28.92 | I165: 73.34 | J165: 29.34 | K165: 0.54 | L165: 55.00 | M165: 11.32 | N165: 60.00 | O165: 4′15 | P165: 40.00 | Q165: 51.67 | R165: 10.33 | S165: 68.59
A166: 164 | B166: 20231226011 | C166: 警犬训练岗 | D166: 08 | E166: - | F166: 0 | G166: 52.60 | H166: 21.04 | I166: 70.66 | J166: 28.26 | K166: 0.75 | L166: 100.00 | M166: 10.81 | N166: 85.00 | O166: 3′49 | P166: 85.00 | Q166: 90.00 | R166: 18.00 | S166: 67.30
A167: 165 | B167: 20231226002 | C167: 警犬训练岗 | D167: 08 | E167: - | F167: 0 | G167: 56.60 | H167: 22.64 | I167: 74.44 | J167: 29.78 | K167: 0.54 | L167: 55.00 | M167: 10.83 | N167: 70.00 | O167: 4′27 | P167: 30.00 | Q167: 51.67 | R167: 10.33 | S167: 62.75
A168: 166 | B168: 20231227024 | C168: 巡逻岗 | D168: 09 | E168: - | F168: 0 | G168: 73.40 | H168: 29.36 | I168: 76.70 | J168: 30.68 | K168: 缺考 | L168: 缺考 | M168: 缺考 | N168: 缺考 | O168: 缺考 | P168: 缺考 | Q168: 缺考 | R168: 缺考 | S168: 缺考
A169: 167 | B169: 20231226026 | C169: 巡逻岗 | D169: 09 | E169: - | F169: 0 | G169: 71.30 | H169: 28.52 | I169: 72.08 | J169: 28.83 | K169: 缺考 | L169: 缺考 | M169: 缺考 | N169: 缺考 | O169: 缺考 | P169: 缺考 | Q169: 缺考 | R169: 缺考 | S169: 缺考
A170: 168 | B170: 20231227010 | C170: 巡逻岗 | D170: 09 | E170: 是 | F170: 2 | G170: 69.10 | H170: 27.64 | I170: 76.94 | J170: 30.78 | K170: 缺考 | L170: 缺考 | M170: 缺考 | N170: 缺考 | O170: 缺考 | P170: 缺考 | Q170: 缺考 | R170: 缺考 | S170: 缺考
A171: 169 | B171: 20231226018 | C171: 巡逻岗 | D171: 09 | E171: - | F171: 0 | G171: 67.10 | H171: 26.84 | I171: 75.90 | J171: 30.36 | K171: 缺考 | L171: 缺考 | M171: 缺考 | N171: 缺考 | O171: 缺考 | P171: 缺考 | Q171: 缺考 | R171: 缺考 | S171: 缺考
A172: 170 | B172: 20231226029 | C172: 巡逻岗 | D172: 09 | E172: - | F172: 0 | G172: 76.90 | H172: 30.76 | I172: 80.60 | J172: 32.24 | K172: 0.57 | L172: 60.00 | M172: 11.17 | N172: 65.00 | O172: 4′45 | P172: 0.00 | Q172: 不合格 | R172: 不合格 | S172: 不合格
A173: 171 | B173: 20231227002 | C173: 巡逻岗 | D173: 09 | E173: - | F173: 0 | G173: 74.90 | H173: 29.96 | I173: 76.80 | J173: 30.72 | K173: 0.57 | L173: 60.00 | M173: 11.33 | N173: 60.00 | O173: 4′40 | P173: 0.00 | Q173: 不合格 | R173: 不合格 | S173: 不合格
A174: 172 | B174: 20231227014 | C174: 巡逻岗 | D174: 09 | E174: - | F174: 0 | G174: 72.10 | H174: 28.84 | I174: 78.28 | J174: 31.31 | K174: 0.66 | L174: 85.00 | M174: 12.46 | N174: 45.00 | O174: 4′45 | P174: 0.00 | Q174: 不合格 | R174: 不合格 | S174: 不合格
A175: 173 | B175: 20231228002 | C175: 巡逻岗 | D175: 09 | E175: - | F175: 0 | G175: 69.70 | H175: 27.88 | I175: 62.30 | J175: 24.92 | K175: 0.47 | L175: 35.00 | M175: 11.91 | N175: 50.00 | O175: 5′24 | P175: 0.00 | Q175: 不合格 | R175: 不合格 | S175: 不合格
A176: 174 | B176: 20231227022 | C176: 巡逻岗 | D176: 09 | E176: - | F176: 0 | G176: 68.70 | H176: 27.48 | I176: 74.38 | J176: 29.75 | K176: 0.49 | L176: 40.00 | M176: 11.97 | N176: 50.00 | O176: 5′02 | P176: 0.00 | Q176: 不合格 | R176: 不合格 | S176: 不合格
A177: 175 | B177: 20231228014 | C177: 巡逻岗 | D177: 09 | E177: - | F177: 0 | G177: 68.10 | H177: 27.24 | I177: 74.74 | J177: 29.90 | K177: 0.59 | L177: 65.00 | M177: 11.32 | N177: 60.00 | O177: 4′32 | P177: 0.00 | Q177: 不合格 | R177: 不合格 | S177: 不合格
A178: 176 | B178: 20231228017 | C178: 巡逻岗 | D178: 09 | E178: - | F178: 0 | G178: 67.70 | H178: 27.08 | I178: 77.44 | J178: 30.98 | K178: 0.48 | L178: 45.00 | M178: 11.43 | N178: 75.00 | O178: 0.00 | P178: 0.00 | Q178: 不合格 | R178: 不合格 | S178: 不合格
A179: 177 | B179: 20231226023 | C179: 巡逻岗 | D179: 09 | E179: - | F179: 0 | G179: 81.10 | H179: 32.44 | I179: 86.64 | J179: 34.66 | K179: 0.60 | L179: 70.00 | M179: 10.71 | N179: 70.00 | O179: 4′20 | P179: 35.00 | Q179: =(L179+N179+P179)/3 -> 58.33 | R179: =Q179*0.2 -> 11.67 | S179: =F179+H179+J179+R179 -> 78.76 | T179: 是
A180: 178 | B180: 20231226015 | C180: 巡逻岗 | D180: 09 | E180: - | F180: 0 | G180: 71.40 | H180: 28.56 | I180: 82.86 | J180: 33.14 | K180: 0.66 | L180: 85.00 | M180: 11.09 | N180: 65.00 | O180: 3′53 | P180: 60.00 | Q180: 70.00 | R180: 14.00 | S180: 75.70 | T180: 是
A181: 179 | B181: 20231228008 | C181: 巡逻岗 | D181: 09 | E181: - | F181: 0 | G181: 72.40 | H181: 28.96 | I181: 80.48 | J181: 32.19 | K181: 0.63 | L181: 75.00 | M181: 10.58 | N181: 75.00 | O181: 3′46 | P181: 65.00 | Q181: 71.67 | R181: 14.33 | S181: 75.49 | T181: 是
A182: 180 | B182: 20231228006 | C182: 巡逻岗 | D182: 09 | E182: - | F182: 0 | G182: 69.30 | H182: 27.72 | I182: 79.80 | J182: 31.92 | K182: 0.68 | L182: 95.00 | M182: 11.68 | N182: 70.00 | O182: 4′06 | P182: 65.00 | Q182: 76.67 | R182: 15.33 | S182: 74.97 | T182: 是
A183: 181 | B183: 20231226030 | C183: 巡逻岗 | D183: 09 | E183: - | F183: 0 | G183: 68.40 | H183: 27.36 | I183: 75.76 | J183: 30.30 | K183: 0.67 | L183: 85.00 | M183: 10.48 | N183: 75.00 | O183: 3′28 | P183: 95.00 | Q183: 85.00 | R183: 17.00 | S183: 74.66 | T183: 是
A184: 182 | B184: 20231226027 | C184: 巡逻岗 | D184: 09 | E184: - | F184: 0 | G184: 72.30 | H184: 28.92 | I184: 80.32 | J184: 32.13 | K184: 0.57 | L184: 65.00 | M184: 11.67 | N184: 70.00 | O184: 4′10 | P184: 65.00 | Q184: 66.67 | R184: 13.33 | S184: 74.38 | T184: 是
A185: 183 | B185: 20231227027 | C185: 巡逻岗 | D185: 09 | E185: - | F185: 0 | G185: 69.60 | H185: 27.84 | I185: 83.94 | J185: 33.58 | K185: 0.68 | L185: 90.00 | M185: 10.84 | N185: 70.00 | O185: 4′28 | P185: 30.00 | Q185: 63.33 | R185: 12.67 | S185: 74.08 | T185: 是
A186: 184 | B186: 20231227001 | C186: 巡逻岗 | D186: 09 | E186: 是 | F186: 2 | G186: 72.90 | H186: 29.16 | I186: 75.52 | J186: 30.21 | K186: 0.62 | L186: 75.00 | M186: 10.90 | N186: 70.00 | O186: 4′07 | P186: 45.00 | Q186: 63.33 | R186: 12.67 | S186: 74.03 | T186: 是
A187: 185 | B187: 20231227005 | C187: 巡逻岗 | D187: 09 | E187: - | F187: 0 | G187: 68.50 | H187: 27.40 | I187: 81.56 | J187: 32.62 | K187: 0.66 | L187: 85.00 | M187: 10.51 | N187: 75.00 | O187: 4′18 | P187: 35.00 | Q187: 65.00 | R187: 13.00 | S187: 73.02 | T187: 是
A188: 186 | B188: 20231227029 | C188: 巡逻岗 | D188: 09 | E188: - | F188: 0 | G188: 70.50 | H188: 28.20 | I188: 79.02 | J188: 31.61 | K188: 0.61 | L188: 70.00 | M188: 11.14 | N188: 65.00 | O188: 3′55 | P188: 60.00 | Q188: 65.00 | R188: 13.00 | S188: 72.81 | T188: 是
A189: 187 | B189: 20231227007 | C189: 巡逻岗 | D189: 09 | E189: - | F189: 0 | G189: 71.90 | H189: 28.76 | I189: 84.26 | J189: 33.70 | K189: 0.57 | L189: 60.00 | M189: 11.22 | N189: 65.00 | O189: 4′27 | P189: 30.00 | Q189: 51.67 | R189: 10.33 | S189: 72.80
A190: 188 | B190: 20231227003 | C190: 巡逻岗 | D190: 09 | E190: - | F190: 0 | G190: 75.10 | H190: 30.04 | I190: 77.36 | J190: 30.94 | K190: 0.53 | L190: 50.00 | M190: 11.49 | N190: 60.00 | O190: 3′50 | P190: 65.00 | Q190: 58.33 | R190: 11.67 | S190: 72.65
A191: 189 | B191: 20231227004 | C191: 巡逻岗 | D191: 09 | E191: - | F191: 0 | G191: 68.60 | H191: 27.44 | I191: 77.74 | J191: 31.10 | K191: 0.54 | L191: 60.00 | M191: 11.22 | N191: 80.00 | O191: 4′05 | P191: 70.00 | Q191: 70.00 | R191: 14.00 | S191: 72.54
A192: 190 | B192: 20231228011 | C192: 巡逻岗 | D192: 09 | E192: - | F192: 0 | G192: 70.20 | H192: 28.08 | I192: 78.76 | J192: 31.50 | K192: 0.59 | L192: 75.00 | M192: 11.42 | N192: 80.00 | O192: 4′46 | P192: 35.00 | Q192: 63.33 | R192: 12.67 | S192: 72.25
A193: 191 | B193: 20231228015 | C193: 巡逻岗 | D193: 09 | E193: - | F193: 0 | G193: 67.80 | H193: 27.12 | I193: 76.86 | J193: 30.74 | K193: 0.59 | L193: 65.00 | M193: 11.16 | N193: 65.00 | O193: 3′53 | P193: 60.00 | Q193: 63.33 | R193: 12.67 | S193: 70.53
A194: 192 | B194: 20231226014 | C194: 巡逻岗 | D194: 09 | E194: - | F194: 0 | G194: 70.40 | H194: 28.16 | I194: 78.58 | J194: 31.43 | K194: 0.67 | L194: 85.00 | M194: 12.70 | N194: 40.00 | O194: 4′18 | P194: 35.00 | Q194: 53.33 | R194: 10.67 | S194: 70.26
A195: 193 | B195: 20231227021 | C195: 巡逻岗 | D195: 09 | E195: - | F195: 0 | G195: 71.80 | H195: =G195*40% -> 28.72 | I195: 75.14 | J195: =I195*40% -> 30.06 | K195: 0.46 | L195: 40.00 | M195: 11.37 | N195: 75.00 | O195: 4′21 | P195: 50.00 | Q195: 55.00 | R195: 11.00 | S195: 69.78
A196: 194 | B196: 20231227019 | C196: 巡逻岗 | D196: 09 | E196: - | F196: 0 | G196: 68.40 | H196: 27.36 | I196: 73.94 | J196: 29.58 | K196: 0.50 | L196: 50.00 | M196: 11.08 | N196: 80.00 | O196: 4′24 | P196: 50.00 | Q196: 60.00 | R196: 12.00 | S196: 68.94
A197: 195 | B197: 20231228007 | C197: 巡逻岗 | D197: 09 | E197: - | F197: 0 | G197: 68.20 | H197: 27.28 | I197: 77.44 | J197: 30.98 | K197: 0.49 | L197: 40.00 | M197: 11.07 | N197: 65.00 | O197: 4′24 | P197: 30.00 | Q197: 45.00 | R197: 9.00 | S197: 67.26
A198: 196 | B198: 20231229001 | C198: 巡逻岗 | D198: 10 | E198: - | F198: 0 | G198: 72.60 | H198: 29.04 | I198: 79.06 | J198: 31.62 | K198: 缺考 | L198: 缺考 | M198: 缺考 | N198: 缺考 | O198: 缺考 | P198: 缺考 | Q198: 缺考 | R198: 缺考 | S198: 缺考
A199: 197 | B199: 20231229003 | C199: 巡逻岗 | D199: 10 | E199: - | F199: 0 | G199: 70.40 | H199: 28.16 | I199: 75.04 | J199: 30.02 | K199: 缺考 | L199: 缺考 | M199: 缺考 | N199: 缺考 | O199: 缺考 | P199: 缺考 | Q199: 缺考 | R199: 缺考 | S199: 缺考
A200: 198 | B200: 20231229008 | C200: 巡逻岗 | D200: 10 | E200: - | F200: 0 | G200: 67.80 | H200: 27.12 | I200: 78.98 | J200: 31.59 | K200: 缺考 | L200: 缺考 | M200: 缺考 | N200: 缺考 | O200: 缺考 | P200: 缺考 | Q200: 缺考 | R200: 缺考 | S200: 缺考
... 116 more rows
